fUSD/lending_fUSD_20240105
["ID","MTS","AMOUNT","RATE_DAILY","PERIOD"]
[310306125,1704471048419,-151.0,0.00029961,7]
[310306126,1704471048429,-265.914047,0.00029961,7]
[310306127,1704471048440,-265.914047,0.00029961,7]
[310306128,1704471048451,-150.0,0.00029961,2]
[310306129,1704471048462,-150.0,0.00029968,2]
[310306130,1704471048472,-700.0,0.0002997,2]
[310306131,1704471048482,-150.0,0.0002997,2]
[310306132,1704471048492,-150.0,0.00029978,2]
[310306133,1704471048503,-150.0,0.00029979,2]
[310306134,1704471048513,-500.0,0.00029982,2]
[310306135,1704471048522,-500.0,0.00029982,2]
[310306136,1704471048535,-269.6204,0.00029982,2]
[310306137,1704471048546,-150.0,0.00029983,2]
[310306138,1704471048558,-150.0,0.00029984,2]
[310306139,1704471048567,-151.0,0.00029988,7]
[310306140,1704471048577,-159.620211,0.00029988,7]
[310306141,1704471048588,-159.620211,0.00029988,7]
[310306142,1704471048598,-151.0,0.00029988,7]
[310306143,1704471048610,-151.0,0.00029988,7]
[310306144,1704471048619,-150.0,0.00029994,2]
[310306145,1704471048628,-150.0,0.00029995,2]
[310306146,1704471048638,-1500.0,0.00029995,2]
[310306147,1704471048648,-1452.66853793,0.00029997,2]
[310306148,1704471048657,-150.0,0.00029998,2]
[310306149,1704471048667,-291.631558,0.00029999,7]
[310306150,1704471048676,-291.631558,0.00029999,7]
[310306151,1704471048687,-461.181151,0.00029999,7]
[310306152,1704471048698,-461.181151,0.00029999,7]
[310306153,1704471048707,-257.368259,0.00029999,7]
[310306154,1704471048717,-572.47148033,0.00029999,4]
[310306155,1704471048727,-392.84414222,0.00029999,4]
[310306156,1704471048736,-343.48288819,0.00029999,4]
[310306157,1704471048747,-168.36177523,0.00029999,4]
[310306158,1704471048756,-367.3128164,0.00029999,4]
[310306159,1704471048766,-376.37261595,0.00029999,4]
[310306160,1704471048775,-420.84786215,0.00029999,4]
[310306161,1704471048785,-164.24,0.00029999,4]
[310306162,1704471048794,-157.41977845,0.00029999,4]
[310306163,1704471048803,-63438.862137,0.00029999,2]
[310306164,1704471048813,-150.0,0.00029999,2]
[310306165,1704471048822,-17895.25377837,0.0003,2]
[310306166,1704471048831,-155.0,0.0003,2]
[310306167,1704471048841,-420072.70334076,0.0003,2]
[310306168,1704471048850,-302.11943812,0.0003,2]
[310306169,1704471048860,-2728.91454028,0.0003,2]
[310306170,1704471048869,-126304.40494945,0.0003,2]
[310306171,1704471048879,-637.92065656,0.0003,2]
[310306172,1704471048888,-40037.33220636,0.0003,4]
[310306173,1704471048897,-200.0,0.0003,2]
[310306174,1704471048907,-200.0,0.0003,2]
[310306175,1704471048916,-200.0,0.0003,2]
[310306176,1704471048926,-681.60776068,0.0003,4]
[310306177,1704471048935,-4539.0,0.0003,30]
[310306178,1704471048946,-5000.0,0.0003,3]
[310306179,1704471048955,-724.39,0.0003,2]
[310306180,1704471048965,-2000.0,0.0003,2]
[310306181,1704471048973,-3181.974951,0.0003,4]
[310306182,1704471048983,-967.92677172,0.0003,4]
[310306183,1704471048993,-386.62004052,0.0003,2]
[310306184,1704471049002,-72679.43685376,0.0003,4]
[310306185,1704471049011,-163.55975146,0.0003,4]
[310306186,1704471049020,-18175.72909938,0.0003,2]
[310306187,1704471049030,-159.778237,0.0003,7]
[310306188,1704471049052,-122860.28935249,0.0003,2]
[310306189,1704471049064,-151.0,0.0003,7]
[310306190,1704471049074,-235.0,0.0003,7]
[310306191,1704471049085,-200000.0,0.0003,2]
[310306192,1704471049095,-159.620211,0.0003,7]
[310306193,1704471049105,-159.620211,0.0003,7]
[310306194,1704471049115,-159.620211,0.0003,7]
[310306195,1704471049126,-159.620211,0.0003,7]
[310306196,1704471049135,-151.0,0.0003,7]
[310306197,1704471049376,-151.0,0.0003,7]
[310306198,1704471049397,-155.0,0.0003,2]
[310306199,1704471049407,-3000.0,0.0003,2]
[310306200,1704471049417,-151.0,0.0003,7]
[310306201,1704471049427,-151.0,0.0003,7]
[310306202,1704471049437,-263.0,0.0003,7]
[310306203,1704471049448,-1121.94101,0.0003,2]
[310306204,1704471049458,-1121.94102,0.0003,2]
[310306205,1704471049472,-1121.94102,0.0003,2]
[310306206,1704471049482,-1121.94102,0.0003,2]
[310306207,1704471049491,-1121.94102,0.0003,2]
[310306208,1704471049502,-1121.94102,0.0003,2]
[310306209,1704471049512,-291.631558,0.0003,7]
[310306210,1704471049522,-291.631558,0.0003,7]
[310306211,1704471049533,-291.631558,0.0003,7]
[310306212,1704471049543,-291.631558,0.0003,7]
[310306213,1704471049552,-291.631558,0.0003,7]
[310306214,1704471049562,-291.631558,0.0003,7]
[310306215,1704471049572,-461.181151,0.0003,7]
[310306216,1704471049582,-461.181151,0.0003,7]
[310306217,1704471049592,-461.181151,0.0003,7]
[310306218,1704471049602,-461.181151,0.0003,7]
[310306219,1704471049611,-461.181151,0.0003,7]
[310306220,1704471049621,-461.181151,0.0003,7]
[310306221,1704471049632,-204.0,0.0003,2]
[310306222,1704471049642,-151.0,0.0003,7]
[310306223,1704471049653,-151.0,0.0003,7]
[310306224,1704471049663,-151.0,0.0003,7]
[310306225,1704471049672,-265.914047,0.0003,7]
[310306226,1704471049683,-265.914047,0.0003,7]
[310306227,1704471049692,-265.914047,0.0003,7]
[310306228,1704471049705,-265.914047,0.0003,7]
[310306229,1704471049716,-265.914047,0.0003,7]
[310306230,1704471049726,-265.914047,0.0003,7]
[310306231,1704471049736,-1000.0,0.0003,2]
[310306232,1704471049746,-151.0,0.0003,7]
[310306233,1704471049760,-151.0,0.0003,7]
[310306234,1704471049770,-151.0,0.0003,7]
[310306235,1704471049781,-151.0,0.0003,7]
[310306236,1704471049791,-243.60875,0.0003,7]
[310306237,1704471049802,-151.0,0.0003,7]
[310306238,1704471049812,-183.024399,0.0003,7]
[310306239,1704471049822,-729.48,0.00030032,2]
[310306240,1704471049832,-344.32,0.00030045,2]
[310306241,1704471049846,-267.35551716,0.00030095,2]
[310306242,1704471049856,-1274.15064558,0.00030095,2]
[310306243,1704471049866,-180.71805982,0.00030095,2]
[310306244,1704471049876,-786.74073073,0.000301,2]
[310306245,1704471049885,-1346.842283,0.00030115,2]
[310306246,1704471049895,-155.0,0.00030131,4]
[310306247,1704471049905,-340.01029887,0.00030131,4]
[310306248,1704471049915,-155.0,0.00030131,2]
[310306249,1704471049925,-202.52398103,0.00030132,4]
[310306250,1704471049935,-155.57500666,0.00030133,4]
[310306251,1704471049945,-530.22896622,0.00030133,4]
[310306252,1704471049955,-207.82033567,0.00030133,4]
[310306253,1704471049965,-3408.18494152,0.00030133,3]
[310306254,1704471049974,-3408.18494152,0.00030133,3]
[310306255,1704471049988,-1493.16573031,0.00030133,2]
[310306256,1704471049998,-1452.66853793,0.00030133,2]
[310306257,1704471050009,-11681.94621376,0.00030134,4]
[310306258,1704471050019,-2949.69033149,0.00030134,4]
[310306259,1704471050031,-196.03634305,0.00030134,4]
[310306260,1704471050042,-2205.21816628,0.00030135,2]
[310306261,1704471050052,-159.620211,0.00030136,7]
[310306262,1704471050063,-159.620211,0.00030136,7]
[310306263,1704471050073,-159.620211,0.00030136,7]
[310306264,1704471050083,-159.620211,0.00030136,7]
[310306265,1704471050094,-159.620211,0.00030136,7]
[310306266,1704471050104,-159.620211,0.00030136,7]
[310306267,1704471050114,-159.620211,0.00030136,7]
[310306268,1704471050125,-159.620213,0.00030136,7]
[310306269,1704471050135,-151.0,0.00030136,7]
[310306270,1704471050145,-151.0,0.00030136,7]
[310306271,1704471050155,-291.631558,0.00030136,7]
[310306272,1704471050167,-291.631558,0.00030136,7]
[310306273,1704471050178,-291.631558,0.00030136,7]
[310306274,1704471050189,-291.631561,0.00030136,7]
[310306275,1704471050201,-461.181151,0.00030136,7]
[310306276,1704471050212,-461.181151,0.00030136,7]
[310306277,1704471050222,-461.181151,0.00030136,7]
[310306278,1704471050232,-461.18116,0.00030136,7]
[310306279,1704471050243,-160.104335,0.00030136,7]
[310306280,1704471050253,-265.914047,0.00030136,7]
[310306281,1704471050264,-265.914047,0.00030136,7]
[310306282,1704471050275,-265.914047,0.00030136,7]
[310306283,1704471050286,-265.914047,0.00030136,7]
[310306284,1704471050297,-265.914047,0.00030136,7]
[310306285,1704471050308,-265.914053,0.00030136,7]
[310306286,1704471050321,-151.0,0.00030136,7]
[310306287,1704471050332,-151.0,0.00030136,7]
[310306288,1704471050343,-151.0,0.00030136,7]
[310306289,1704471050353,-151.0,0.00030136,7]
[310306290,1704471050365,-500.0,0.00030136,2]
[310306291,1704471050376,-500.0,0.00030136,2]
[310306292,1704471050387,-500.0,0.00030136,2]
[310306293,1704471050398,-2000.0,0.00030136,2]
[310306294,1704471050409,-2000.0,0.00030136,2]
[310306295,1704471050420,-2000.0,0.00030136,2]
[310306296,1704471050432,-2000.0,0.00030136,2]
[310306297,1704471050444,-2000.0,0.00030136,2]
[310306298,1704471050455,-2000.0,0.00030136,2]
[310306299,1704471050465,-2000.0,0.00030136,2]
[310306300,1704471050475,-2000.0,0.00030136,2]
[310306301,1704471050486,-2000.0,0.00030136,2]
[310306302,1704471050497,-2000.0,0.00030136,2]
[310306303,1704471050509,-2000.0,0.00030136,2]
[310306304,1704471050519,-2000.0,0.00030136,2]
[310306305,1704471050529,-2000.0,0.00030136,2]
[310306306,1704471050541,-2000.0,0.00030136,2]
[310306307,1704471050553,-2000.0,0.00030136,2]
[310306308,1704471050563,-2000.0,0.00030136,2]
[310306309,1704471050574,-2000.0,0.00030136,2]
[310306310,1704471050585,-2000.0,0.00030136,2]
[310306311,1704471050596,-2000.0,0.00030136,2]
[310306312,1704471050608,-2000.0,0.00030136,2]
[310306313,1704471050618,-1625.3729619,0.00030136,2]
[310306314,1704471050629,-500.0,0.00030136,2]
[310306315,1704471050639,-500.0,0.00030136,2]
[310306316,1704471050650,-500.0,0.00030136,2]
[310306317,1704471050662,-500.0,0.00030136,2]
[310306318,1704471050674,-500.0,0.00030136,2]
[310306319,1704471050685,-502.00821458,0.00030136,2]
[310306320,1704471050696,-591.02190023,0.00030136,2]
[310306321,1704471050706,-506.66616846,0.00030136,2]
[310306322,1704471050717,-500.0,0.00030136,2]
[310306323,1704471050728,-587.24752515,0.00030136,2]
[310306324,1704471050739,-500.0,0.00030136,2]
[310306325,1704471050750,-500.0,0.00030136,2]
[310306326,1704471050760,-500.0,0.00030136,2]
[310306327,1704471050771,-500.0,0.00030136,2]
[310306328,1704471050781,-304.59106892,0.00030136,2]
[310306329,1704471050791,-527.99224318,0.00030136,2]
[310306330,1704471050803,-292.02857644,0.00030136,2]
[310306331,1704471050813,-561.19774549,0.00030136,2]
[310306332,1704471050824,-500.0,0.00030136,2]
[310306333,1704471050834,-500.0,0.00030136,2]
[310306334,1704471050845,-570.68398493,0.00030136,2]
[310306335,1704471050855,-500.0,0.00030136,2]
[310306336,1704471050865,-500.0,0.00030136,2]
[310306337,1704471050875,-500.0,0.00030136,2]
[310306338,1704471050886,-500.0,0.00030136,2]
[310306339,1704471050897,-504.71323142,0.00030136,2]
[310306340,1704471050908,-500.0,0.00030136,2]
[310306341,1704471050920,-500.0,0.00030136,2]
[310306342,1704471050930,-500.0,0.00030136,2]
[310306343,1704471050941,-500.0,0.00030136,2]
[310306344,1704471050953,-150.0,0.00030136,2]
[310306345,1704471050964,-500.0,0.00030136,2]
[310306346,1704471050974,-481.3889513,0.00030136,2]
[310306347,1704471050984,-1435.45,0.00030136,2]
[310306348,1704471050994,-198.66918277,0.00030136,2]
[310306349,1704471051006,-490.29833182,0.00030136,2]
[310306350,1704471051016,-503.02223156,0.00030136,2]
[310306351,1704471051037,-500.0,0.00030136,2]
[310306352,1704471051054,-543.28028118,0.00030136,2]
[310306353,1704471051066,-500.0,0.00030136,2]
[310306354,1704471051077,-500.0,0.00030136,2]
[310306355,1704471051089,-500.0,0.00030136,2]
[310306356,1704471051101,-500.0,0.00030136,2]
[310306357,1704471051112,-500.0,0.00030136,2]
[310306358,1704471051124,-316.18714464,0.00030136,2]
[310306359,1704471051136,-233.26109699,0.00030136,2]
[310306360,1704471051147,-500.0,0.00030136,2]
[310306361,1704471051158,-532.05122804,0.00030136,2]
[310306362,1704471051169,-500.0,0.00030136,2]
[310306363,1704471051180,-500.0,0.00030136,2]
[310306364,1704471051191,-500.0,0.00030136,2]
[310306365,1704471051205,-500.0,0.00030136,2]
[310306366,1704471051217,-608.72181237,0.00030136,2]
[310306367,1704471051228,-500.0,0.00030136,2]
[310306368,1704471051239,-634.84815329,0.00030136,2]
[310306369,1704471051251,-502.51578739,0.00030136,2]
[310306370,1704471051263,-500.0,0.00030136,2]
[310306371,1704471051275,-500.0,0.00030136,2]
[310306372,1704471051286,-500.0,0.00030136,2]
[310306373,1704471051297,-500.0,0.00030136,2]
[310306374,1704471051308,-210.578797,0.00030136,2]
[310306375,1704471051319,-500.0,0.00030136,2]
[310306376,1704471051330,-1073.01131416,0.00030136,30]
[310306377,1704471051342,-189.69617612,0.00030136,2]
[310306378,1704471051353,-500.0,0.00030136,2]
[310306379,1704471051365,-500.0,0.00030136,2]
[310306380,1704471051376,-500.0,0.00030136,2]
[310306381,1704471051388,-500.0,0.00030136,2]
[310306382,1704471051398,-500.0,0.00030136,2]
[310306383,1704471051410,-500.0,0.00030136,2]
[310306384,1704471051420,-500.0,0.00030136,2]
[310306385,1704471051431,-500.0,0.00030136,2]
[310306386,1704471051442,-500.0,0.00030136,2]
[310306387,1704471051455,-500.0,0.00030136,2]
[310306388,1704471051465,-500.0,0.00030136,2]
[310306389,1704471051476,-510.89785899,0.00030136,2]
[310306390,1704471051487,-500.0,0.00030136,2]
[310306391,1704471051497,-764.34,0.00030136,2]
[310306392,1704471051508,-500.0,0.00030136,2]
[310306393,1704471051519,-513.31905209,0.00030136,2]
[310306394,1704471051529,-749.93,0.00030136,2]
[310306395,1704471051541,-500.0,0.00030136,2]
[310306396,1704471051551,-500.0,0.00030136,2]
[310306397,1704471051562,-500.0,0.00030136,2]
[310306398,1704471051573,-500.0,0.00030136,2]
[310306399,1704471051584,-324.93365342,0.00030136,2]
[310306400,1704471051594,-512.27,0.00030136,2]
[310306401,1704471051606,-500.0,0.00030136,2]
[310306402,1704471051616,-500.0,0.00030136,2]
[310306403,1704471051626,-500.0,0.00030136,2]
[310306404,1704471051637,-500.0,0.00030136,2]
[310306405,1704471051649,-790.83,0.00030136,2]
[310306406,1704471051660,-503.87724154,0.00030136,2]
[310306407,1704471051673,-500.0,0.00030136,2]
[310306408,1704471051684,-500.0,0.00030136,2]
[310306409,1704471051696,-500.0,0.00030136,2]
[310306410,1704471051706,-500.0,0.00030136,2]
[310306411,1704471051717,-615.8155984,0.00030136,2]
[310306412,1704471051728,-500.0,0.00030136,2]
[310306413,1704471051740,-500.0,0.00030136,2]
[310306414,1704471051753,-500.0,0.00030136,2]
[310306415,1704471051763,-500.0,0.00030136,2]
[310306416,1704471051774,-500.0,0.00030136,2]
[310306417,1704471051785,-500.0,0.00030136,2]
[310306418,1704471051797,-500.0,0.00030136,2]
[310306419,1704471051808,-654.72,0.00030136,2]
[310306420,1704471051820,-500.0,0.00030136,2]
[310306421,1704471051831,-500.0,0.00030136,2]
[310306422,1704471051842,-500.0,0.00030136,2]
[310306423,1704471051854,-500.0,0.00030136,2]
[310306424,1704471051865,-500.0,0.00030136,2]
[310306425,1704471051876,-500.0,0.00030136,2]
[310306426,1704471051887,-500.0,0.00030136,2]
[310306427,1704471051901,-500.0,0.00030136,2]
[310306428,1704471051912,-500.0,0.00030136,2]
[310306429,1704471051923,-500.0,0.00030136,2]
[310306430,1704471051934,-500.0,0.00030136,2]
[310306431,1704471051945,-500.0,0.00030136,2]
[310306432,1704471051956,-529.81,0.00030136,2]
[310306433,1704471051967,-500.0,0.00030136,2]
[310306434,1704471051978,-553.69,0.00030136,2]
[310306435,1704471051989,-500.0,0.00030136,2]
[310306436,1704471051999,-310.98838772,0.00030136,2]
[310306437,1704471052011,-500.0,0.00030136,2]
[310306438,1704471052024,-500.0,0.00030136,2]
[310306439,1704471052034,-500.0,0.00030136,2]
[310306440,1704471052046,-500.0,0.00030136,2]
[310306441,1704471052057,-714.69,0.00030136,2]
[310306442,1704471052068,-714.69,0.00030136,2]
[310306443,1704471052080,-500.0,0.00030136,2]
[310306444,1704471052246,-714.69,0.00030136,2]
[310306445,1704471052256,-500.0,0.00030136,2]
[310306446,1704471052268,-714.69,0.00030136,2]
[310306447,1704471052278,-500.0,0.00030136,2]
[310306448,1704471052288,-714.69,0.00030136,2]
[310306449,1704471052298,-714.69,0.00030136,2]
[310306450,1704471052308,-714.69,0.00030136,2]
[310306451,1704471052319,-714.69,0.00030136,2]
[310306452,1704471052329,-500.0,0.00030136,2]
[310306453,1704471052339,-714.69,0.00030136,2]
[310306454,1704471052351,-714.69,0.00030136,2]
[310306455,1704471052362,-714.69,0.00030136,2]
[310306456,1704471052372,-500.0,0.00030136,2]
[310306457,1704471052382,-500.0,0.00030136,2]
[310306458,1704471052392,-714.69,0.00030136,2]
[310306459,1704471052402,-714.69,0.00030136,2]
[310306460,1704471052411,-500.0,0.00030136,2]
[310306461,1704471052422,-714.69,0.00030136,2]
[310306462,1704471052431,-714.69,0.00030136,2]
[310306463,1704471052442,-714.69,0.00030136,2]
[310306464,1704471052453,-714.69,0.00030136,2]
[310306465,1704471052464,-179.23485971,0.00030136,2]
[310306466,1704471052474,-714.69,0.00030136,2]
[310306467,1704471052486,-500.0,0.00030136,2]
[310306468,1704471052498,-714.69,0.00030136,2]
[310306469,1704471052510,-504.77191921,0.00030136,2]
[310306470,1704471052522,-714.69,0.00030136,2]
[310306471,1704471052533,-714.69,0.00030136,2]
[310306472,1704471052548,-714.69,0.00030136,2]
[310306473,1704471052558,-714.69,0.00030136,2]
[310306474,1704471052568,-714.91560636,0.00030136,2]
[310306475,1704471052579,-500.0,0.00030136,2]
[310306476,1704471052590,-500.0,0.00030136,2]
[310306477,1704471052600,-500.0,0.00030136,2]
[310306478,1704471052610,-500.0,0.00030136,2]
[310306479,1704471052621,-500.0,0.00030136,2]
[310306480,1704471052631,-500.0,0.00030136,2]
[310306481,1704471052641,-500.0,0.00030136,2]
[310306482,1704471052651,-500.0,0.00030136,2]
[310306483,1704471052662,-500.0,0.00030136,2]
[310306484,1704471052672,-500.0,0.00030136,2]
[310306485,1704471052682,-500.0,0.00030136,2]
[310306486,1704471052692,-500.0,0.00030136,2]
[310306487,1704471052703,-506.68859542,0.00030136,2]
[310306488,1704471052714,-500.0,0.00030136,2]
[310306489,1704471052724,-500.0,0.00030136,2]
[310306490,1704471052735,-522.11085905,0.00030136,2]
[310306491,1704471052745,-500.0,0.00030136,2]
[310306492,1704471052755,-500.0,0.00030136,2]
[310306493,1704471052765,-510.77960154,0.00030136,2]
[310306494,1704471052775,-500.0,0.00030136,2]
[310306495,1704471052786,-535.10351082,0.00030136,2]
[310306496,1704471052797,-319.14349236,0.00030136,2]
[310306497,1704471052808,-500.0,0.00030136,2]
[310306498,1704471052818,-500.0,0.00030136,2]
[310306499,1704471052829,-500.0,0.00030136,2]
[310306500,1704471052840,-500.0,0.00030136,2]
[310306501,1704471052851,-990.19,0.00030136,2]
[310306502,1704471052861,-500.0,0.00030136,2]
[310306503,1704471052871,-500.0,0.00030136,2]
[310306504,1704471052881,-500.0,0.00030136,2]
[310306505,1704471052891,-169.64017505,0.00030136,2]
[310306506,1704471052902,-500.0,0.00030136,2]
[310306507,1704471052912,-500.0,0.00030136,2]
[310306508,1704471052923,-500.0,0.00030136,2]
[310306509,1704471052934,-500.0,0.00030136,2]
[310306510,1704471052943,-500.0,0.00030136,2]
[310306511,1704471052953,-500.0,0.00030136,2]
[310306512,1704471052963,-500.0,0.00030136,2]
[310306513,1704471052972,-500.0,0.00030136,2]
[310306514,1704471052982,-500.0,0.00030136,2]
[310306515,1704471052992,-500.0,0.00030136,2]
[310306516,1704471053003,-849.23,0.00030136,2]
[310306517,1704471053015,-500.0,0.00030136,2]
[310306518,1704471053026,-500.0,0.00030136,2]
[310306519,1704471053036,-500.0,0.00030136,2]
[310306520,1704471053047,-500.0,0.00030136,2]
[310306521,1704471053057,-500.0,0.00030136,2]
[310306522,1704471053069,-500.0,0.00030136,2]
[310306523,1704471053078,-500.0,0.00030136,2]
[310306524,1704471053088,-443.72975475,0.00030136,2]
[310306525,1704471053098,-500.0,0.00030136,2]
[310306526,1704471053109,-500.0,0.00030136,2]
[310306527,1704471053118,-500.0,0.00030136,2]
[310306528,1704471053128,-500.0,0.00030136,2]
[310306529,1704471053138,-500.0,0.00030136,2]
[310306530,1704471053148,-500.0,0.00030136,2]
[310306531,1704471053158,-500.0,0.00030136,2]
[310306532,1704471053168,-500.0,0.00030136,2]
[310306533,1704471053178,-500.0,0.00030136,2]
[310306534,1704471053189,-253.18077334,0.00030136,2]
[310306535,1704471053199,-500.0,0.00030136,2]
[310306536,1704471053210,-500.0,0.00030136,2]
[310306537,1704471053220,-581.39,0.00030136,2]
[310306538,1704471053231,-500.0,0.00030136,2]
[310306539,1704471053244,-500.0,0.00030136,2]
[310306540,1704471053254,-500.0,0.00030136,2]
[310306541,1704471053263,-504.05980713,0.00030136,2]
[310306542,1704471053273,-500.0,0.00030136,2]
[310306543,1704471053284,-500.0,0.00030136,2]
[310306544,1704471053294,-500.0,0.00030136,2]
[310306545,1704471053304,-500.0,0.00030136,2]
[310306546,1704471053315,-500.0,0.00030136,2]
[310306547,1704471053326,-500.0,0.00030136,2]
[310306548,1704471053337,-500.0,0.00030136,2]
[310306549,1704471053348,-500.0,0.00030136,2]
[310306550,1704471053358,-500.0,0.00030136,2]
[310306551,1704471053368,-500.0,0.00030136,2]
[310306552,1704471053378,-500.0,0.00030136,2]
[310306553,1704471053389,-534.59243616,0.00030136,2]
[310306554,1704471053399,-500.0,0.00030136,2]
[310306555,1704471053410,-500.0,0.00030136,2]
[310306556,1704471053422,-500.0,0.00030136,2]
[310306557,1704471053432,-500.0,0.00030136,2]
[310306558,1704471053442,-500.0,0.00030136,2]
[310306559,1704471053453,-500.0,0.00030136,2]
[310306560,1704471053464,-500.0,0.00030136,2]
[310306561,1704471053474,-500.0,0.00030136,2]
[310306562,1704471053486,-500.0,0.00030136,2]
[310306563,1704471053498,-500.0,0.00030136,2]
[310306564,1704471053507,-246.17781773,0.00030136,2]
[310306565,1704471053517,-500.0,0.00030136,2]
[310306566,1704471053526,-500.0,0.00030136,2]
[310306567,1704471053536,-500.0,0.00030136,2]
[310306568,1704471053547,-500.0,0.00030136,2]
[310306569,1704471053557,-506.84345612,0.00030136,2]
[310306570,1704471053567,-500.0,0.00030136,2]
[310306571,1704471053576,-500.0,0.00030136,2]
[310306572,1704471053585,-210.89450731,0.00030136,2]
[310306573,1704471053596,-500.0,0.00030136,2]
[310306574,1704471053605,-500.0,0.00030136,2]
[310306575,1704471053615,-500.0,0.00030136,2]
[310306576,1704471053624,-503.45243679,0.00030136,2]
[310306577,1704471053634,-760.0,0.00030136,2]
[310306578,1704471053643,-504.06982559,0.00030136,2]
[310306579,1704471053653,-516.09927008,0.00030136,2]
[310306580,1704471053663,-500.0,0.00030136,2]
[310306581,1704471053672,-500.0,0.00030136,2]
[310306582,1704471053682,-500.0,0.00030136,2]
[310306583,1704471053691,-500.0,0.00030136,2]
[310306584,1704471053703,-500.0,0.00030136,2]
[310306585,1704471053712,-500.0,0.00030136,2]
[310306586,1704471053721,-500.0,0.00030136,2]
[310306587,1704471053731,-201.22089554,0.00030136,2]
[310306588,1704471053742,-500.0,0.00030136,2]
[310306589,1704471053753,-500.0,0.00030136,2]
[310306590,1704471053762,-500.0,0.00030136,2]
[310306591,1704471053772,-500.0,0.00030136,2]
[310306592,1704471053783,-500.0,0.00030136,2]
[310306593,1704471053794,-500.0,0.00030136,2]
[310306594,1704471053804,-500.0,0.00030136,2]
[310306595,1704471053813,-503.13020786,0.00030136,2]
[310306596,1704471053822,-500.0,0.00030136,2]
[310306597,1704471053833,-500.0,0.00030136,2]
[310306598,1704471053843,-671.05,0.00030136,2]
[310306599,1704471053853,-500.0,0.00030136,2]
[310306600,1704471053862,-500.0,0.00030136,2]
[310306601,1704471053872,-500.0,0.00030136,2]
[310306602,1704471053882,-625.26388913,0.00030136,2]
[310306603,1704471053892,-500.0,0.00030136,2]
[310306604,1704471053901,-500.0,0.00030136,2]
[310306605,1704471053911,-500.0,0.00030136,2]
[310306606,1704471053920,-508.03,0.00030136,2]
[310306607,1704471053929,-500.0,0.00030136,2]
[310306608,1704471053939,-500.0,0.00030136,2]
[310306609,1704471053950,-500.0,0.00030136,2]
[310306610,1704471053959,-500.0,0.00030136,2]
[310306611,1704471053969,-500.0,0.00030136,2]
[310306612,1704471053978,-500.0,0.00030136,2]
[310306613,1704471053988,-500.0,0.00030136,2]
[310306614,1704471053997,-174.49389098,0.00030136,2]
[310306615,1704471054006,-500.0,0.00030136,2]
[310306616,1704471054015,-500.0,0.00030136,2]
[310306617,1704471054025,-500.0,0.00030136,2]
[310306618,1704471054035,-500.0,0.00030136,2]
[310306619,1704471054044,-500.0,0.00030136,2]
[310306620,1704471054053,-500.0,0.00030136,2]
[310306621,1704471054063,-500.0,0.00030136,2]
[310306622,1704471054072,-431.66052291,0.00030136,2]
[310306623,1704471054082,-500.0,0.00030136,2]
[310306624,1704471054091,-500.0,0.00030136,2]